[Event "*** Titled Tuesday Blitz"]
[Site "Chess.com"]
[Date "2019.07.02"]
[Round "10"]
[White "lrestevez"]
[Black "Ceejay271"]
[Result "1-0"]
[WhiteElo "2154"]
[BlackElo "2230"]
[TimeControl "180+2"]
[EndTime "15:15:09 PDT"]
[Termination "lrestevez won on time"]

1. e4 {[%clk 0:03:01.9]} 1... e5 {[%clk 0:02:57.8]} 2. Nf3 {[%clk 0:03:02.2]}
2... Nc6 {[%clk 0:02:57.2]} 3. Bc4 {[%clk 0:02:59.4]} 3... Bc5 {[%clk
0:02:55.6]} 4. O-O {[%clk 0:02:56.6]} 4... Nf6 {[%clk 0:02:55.8]} 5. c3 {[%clk
0:02:57.1]} 5... Nxe4 {[%clk 0:02:37.1]} 6. d4 {[%clk 0:02:57.2]} 6... Bb6
{[%clk 0:02:26.6]} 7. dxe5 {[%clk 0:02:42.6]} 7... O-O {[%clk 0:02:23.8]} 8. Bd5
{[%clk 0:02:43.7]} 8... Nc5 {[%clk 0:02:19.8]} 9. Nbd2 {[%clk 0:02:38.5]} 9...
d6 {[%clk 0:02:14.8]} 10. exd6 {[%clk 0:02:35.1]} 10... Qxd6 {[%clk 0:02:15]}
11. Nc4 {[%clk 0:02:36.2]} 11... Qg6 {[%clk 0:02:12]} 12. b4 {[%clk 0:02:27.1]}
12... Ne6 {[%clk 0:02:04]} 13. Qe2 {[%clk 0:02:23.3]} 13... Ne7 {[%clk
0:01:52.2]} 14. Be4 {[%clk 0:02:20]} 14... Qh5 {[%clk 0:01:47.9]} 15. a4 {[%clk
0:02:20]} 15... c6 {[%clk 0:01:41.1]} 16. Re1 {[%clk 0:02:00.6]} 16... Bc7
{[%clk 0:01:38.8]} 17. Bd2 {[%clk 0:01:58.9]} 17... Ng6 {[%clk 0:01:33.9]} 18.
g3 {[%clk 0:01:56.3]} 18... f5 {[%clk 0:01:12.2]} 19. Bc2 {[%clk 0:01:52.8]}
19... f4 {[%clk 0:01:12.4]} 20. Nfe5 {[%clk 0:01:27.5]} 20... f3 {[%clk
0:01:06.6]} 21. Bxg6 {[%clk 0:01:27]} 21... hxg6 {[%clk 0:01:03]} 22. Qe4 {[%clk
0:01:23.7]} 22... Ng5 {[%clk 0:00:15.5]} 23. Bxg5 {[%clk 0:01:11.6]} 23... Qxg5
{[%clk 0:00:17.4]} 24. Qxg6 {[%clk 0:01:02]} 24... Qxg6 {[%clk 0:00:05.3]} 25.
Nxg6 {[%clk 0:01:01.4]} 25... Rf6 {[%clk 0:00:06.8]} 26. Ne7+ {[%clk 0:01:01.1]}
26... Kf7 {[%clk 0:00:07.6]} 27. Nxc8 {[%clk 0:01:00.4]} 27... Rxc8 {[%clk
0:00:09.5]} 28. Rad1 {[%clk 0:01:00.2]} 28... Rd8 {[%clk 0:00:09.1]} 29. Rxd8
{[%clk 0:01:00]} 29... Bxd8 {[%clk 0:00:11]} 30. Re3 {[%clk 0:00:57]} 30... Bc7
{[%clk 0:00:09.9]} 31. h4 {[%clk 0:00:55.7]} 31... b5 {[%clk 0:00:08.4]} 32.
axb5 {[%clk 0:00:55.9]} 32... cxb5 {[%clk 0:00:10.3]} 33. Nd2 {[%clk 0:00:57.1]}
33... a6 {[%clk 0:00:09.6]} 34. Rxf3 {[%clk 0:00:58.3]} 34... Rxf3 {[%clk
0:00:09.9]} 35. Nxf3 {[%clk 0:00:59.2]} 35... Ke6 {[%clk 0:00:11.8]} 36. Kf1
{[%clk 0:00:59.8]} 36... Kd5 {[%clk 0:00:13.1]} 37. Ke2 {[%clk 0:01:00.4]} 37...
Kc4 {[%clk 0:00:15]} 38. Kd2 {[%clk 0:01:00.1]} 38... Bb6 {[%clk 0:00:16.5]} 39.
Ne5+ {[%clk 0:00:58.8]} 39... Kd5 {[%clk 0:00:16.2]} 40. Nd3 {[%clk 0:00:59.5]}
40... Kc4 {[%clk 0:00:14.7]} 41. Kc2 {[%clk 0:01:00.4]} 41... a5 {[%clk
0:00:13.5]} 42. bxa5 {[%clk 0:00:59]} 42... Bxa5 {[%clk 0:00:15.4]} 43. Ne5+
{[%clk 0:00:52.2]} 43... Kd5 {[%clk 0:00:15.7]} 44. Nd3 {[%clk 0:00:51.4]} 44...
Kc4 {[%clk 0:00:16.3]} 45. Ne5+ {[%clk 0:00:50.7]} 45... Kd5 {[%clk 0:00:17.3]}
46. Nf3 {[%clk 0:00:49.7]} 46... Kc4 {[%clk 0:00:15.3]} 47. Nd2+ {[%clk
0:00:50.1]} 47... Kd5 {[%clk 0:00:14.3]} 48. f3 {[%clk 0:00:49.7]} 48... Bc7
{[%clk 0:00:11.7]} 49. g4 {[%clk 0:00:50.2]} 49... Ke5 {[%clk 0:00:12.9]} 50.
Kd3 {[%clk 0:00:49.8]} 50... Kf4 {[%clk 0:00:13.7]} 51. h5 {[%clk 0:00:50.1]}
51... Be5 {[%clk 0:00:12.5]} 52. c4 {[%clk 0:00:48.3]} 52... b4 {[%clk
0:00:11.3]} 53. c5 {[%clk 0:00:48.6]} 53... b3 {[%clk 0:00:10.4]} 54. c6 {[%clk
0:00:44.8]} 54... b2 {[%clk 0:00:09.1]} 55. Kc2 {[%clk 0:00:44.7]} 1-0

[Event "*** Titled Tuesday Blitz"]
[Site "Chess.com"]
[Date "2019.07.02"]
[Round "10"]
[White "Galileo22"]
[Black "TonRicher"]
[Result "1/2-1/2"]
[WhiteElo "2382"]
[BlackElo "2400"]
[TimeControl "180+2"]
[EndTime "15:15:17 PDT"]
[Termination "Game drawn by repetition"]

1. d4 {[%clk 0:03:01.9]} 1... Nf6 {[%clk 0:03:00.4]} 2. Nf3 {[%clk 0:03:02.5]}
2... d5 {[%clk 0:03:01.2]} 3. g3 {[%clk 0:03:01.9]} 3... e6 {[%clk 0:03:01.6]}
4. c4 {[%clk 0:03:03]} 4... Be7 {[%clk 0:03:01.9]} 5. Bg2 {[%clk 0:03:04.2]}
5... O-O {[%clk 0:03:03.3]} 6. O-O {[%clk 0:03:05.7]} 6... dxc4 {[%clk
0:03:04.7]} 7. Qc2 {[%clk 0:03:06.9]} 7... a6 {[%clk 0:03:05.7]} 8. a4 {[%clk
0:03:07.6]} 8... Bd7 {[%clk 0:03:05.8]} 9. Qxc4 {[%clk 0:03:09.1]} 9... Bc6
{[%clk 0:03:06.7]} 10. Bg5 {[%clk 0:03:09.4]} 10... Bd5 {[%clk 0:03:05.8]} 11.
Qc2 {[%clk 0:03:08.9]} 11... Be4 {[%clk 0:03:06.6]} 12. Qc1 {[%clk 0:03:03.5]}
12... c5 {[%clk 0:02:55.8]} 13. dxc5 {[%clk 0:02:53.7]} 13... Qa5 {[%clk
0:02:55.9]} 14. Nbd2 {[%clk 0:02:46.9]} 14... Bc6 {[%clk 0:02:44.7]} 15. Nc4
{[%clk 0:02:41.8]} 15... Qxc5 {[%clk 0:01:54.3]} 16. Nfe5 {[%clk 0:01:23.1]}
16... Bxg2 {[%clk 0:01:44.2]} 17. Kxg2 {[%clk 0:01:25]} 17... b5 {[%clk
0:00:51]} 18. axb5 {[%clk 0:01:05.1]} 18... axb5 {[%clk 0:00:52.9]} 19. Rxa8
{[%clk 0:00:46.8]} 19... Qd5+ {[%clk 0:00:41.1]} 20. f3 {[%clk 0:00:36.1]} 20...
Qxa8 {[%clk 0:00:43]} 21. Nd2 {[%clk 0:00:26.4]} 21... h6 {[%clk 0:00:38.2]} 22.
Be3 {[%clk 0:00:25.2]} 22... Nd5 {[%clk 0:00:36.3]} 23. Bf2 {[%clk 0:00:24.9]}
23... Qb7 {[%clk 0:00:34.9]} 24. Qb1 {[%clk 0:00:18.4]} 24... Rd8 {[%clk
0:00:25.2]} 25. Nd3 {[%clk 0:00:17.9]} 25... Nc6 {[%clk 0:00:18.9]} 26. Nb3
{[%clk 0:00:18.2]} 26... Ndb4 {[%clk 0:00:16.8]} 27. Rd1 {[%clk 0:00:17.6]}
27... Nxd3 {[%clk 0:00:17.2]} 28. Rxd3 {[%clk 0:00:19.5]} 28... Ne5 {[%clk
0:00:11.9]} 29. Rxd8+ {[%clk 0:00:18.6]} 29... Bxd8 {[%clk 0:00:13.8]} 30. Qd1
{[%clk 0:00:12.4]} 30... Be7 {[%clk 0:00:12.1]} 31. Qd4 {[%clk 0:00:10.9]} 31...
Qd5 {[%clk 0:00:11.2]} 32. Qxd5 {[%clk 0:00:09.4]} 32... exd5 {[%clk 0:00:13.1]}
33. Bd4 {[%clk 0:00:10.8]} 33... Nc4 {[%clk 0:00:14]} 34. Kf2 {[%clk 0:00:08.2]}
34... Bf6 {[%clk 0:00:14.9]} 35. e3 {[%clk 0:00:08.6]} 35... Nxb2 {[%clk
0:00:14.9]} 36. Bxf6 {[%clk 0:00:07.6]} 36... gxf6 {[%clk 0:00:16.8]} 37. Ke2
{[%clk 0:00:09.1]} 37... Nc4 {[%clk 0:00:17.5]} 38. f4 {[%clk 0:00:10.4]} 38...
Kf8 {[%clk 0:00:18.5]} 39. Kd3 {[%clk 0:00:11.6]} 39... Ke7 {[%clk 0:00:19.5]}
40. Nd4 {[%clk 0:00:10.9]} 40... b4 {[%clk 0:00:19]} 41. Nc6+ {[%clk 0:00:11.5]}
41... Ke6 {[%clk 0:00:18.9]} 42. Nxb4 {[%clk 0:00:13.4]} 42... Nd6 {[%clk
0:00:18.7]} 43. Ke2 {[%clk 0:00:12.5]} 43... f5 {[%clk 0:00:19.6]} 44. Nc2
{[%clk 0:00:12.2]} 44... Nb5 {[%clk 0:00:20]} 45. Kd3 {[%clk 0:00:10.6]} 45...
Kd6 {[%clk 0:00:21]} 46. Nd4 {[%clk 0:00:10.5]} 46... Nxd4 {[%clk 0:00:19.3]}
47. Kxd4 {[%clk 0:00:11.1]} 47... f6 {[%clk 0:00:20.4]} 48. h3 {[%clk 0:00:11]}
48... h5 {[%clk 0:00:19.9]} 49. Kd3 {[%clk 0:00:10.8]} 49... Kc6 {[%clk
0:00:20.2]} 50. Kc3 {[%clk 0:00:11.2]} 50... Kc5 {[%clk 0:00:21.2]} 51. Kd3
{[%clk 0:00:11.9]} 51... Kc6 {[%clk 0:00:22.1]} 52. Kd4 {[%clk 0:00:09.8]} 52...
Kd6 {[%clk 0:00:22.9]} 53. Kc3 {[%clk 0:00:11.3]} 53... Kc5 {[%clk 0:00:23.9]}
54. Kd3 {[%clk 0:00:12.7]} 54... Kc6 {[%clk 0:00:23.2]} 1/2-1/2

[Event "*** Titled Tuesday Blitz"]
[Site "Chess.com"]
[Date "2019.07.02"]
[Round "10"]
[White "AndrewMaco"]
[Black "JonahWillow"]
[Result "1-0"]
[WhiteElo "2636"]
[BlackElo "2698"]
[TimeControl "180+2"]
[EndTime "15:15:27 PDT"]
[Termination "AndrewMaco won by resignation"]

1. e4 {[%clk 0:03:01.9]} 1... c5 {[%clk 0:02:57.4]} 2. Nf3 {[%clk 0:03:01.6]}
2... e6 {[%clk 0:02:58.5]} 3. d4 {[%clk 0:03:01.8]} 3... cxd4 {[%clk 0:03:00.4]}
4. Nxd4 {[%clk 0:03:03.7]} 4... a6 {[%clk 0:03:01.9]} 5. Nc3 {[%clk 0:03:04.7]}
5... Qc7 {[%clk 0:03:00.9]} 6. Be3 {[%clk 0:03:04.9]} 6... Nf6 {[%clk
0:02:27.4]} 7. Qf3 {[%clk 0:03:01.7]} 7... Bb4 {[%clk 0:02:25.8]} 8. Bd2 {[%clk
0:02:38.1]} 8... Nc6 {[%clk 0:02:21.2]} 9. Nxc6 {[%clk 0:02:36.6]} 9... bxc6
{[%clk 0:02:21.7]} 10. a3 {[%clk 0:02:34.7]} 10... Bd6 {[%clk 0:02:19.8]} 11.
O-O-O {[%clk 0:02:29.5]} 11... Rb8 {[%clk 0:02:16.6]} 12. Be3 {[%clk 0:02:22.5]}
12... Be5 {[%clk 0:02:13.6]} 13. Bd4 {[%clk 0:02:22.6]} 13... c5 {[%clk
0:01:39.2]} 14. Bxe5 {[%clk 0:02:21]} 14... Qxe5 {[%clk 0:01:41.1]} 15. Qg3
{[%clk 0:02:21.9]} 15... Qxg3 {[%clk 0:01:38.7]} 16. hxg3 {[%clk 0:02:23.8]}
16... Bb7 {[%clk 0:01:36.5]} 17. f3 {[%clk 0:02:20.9]} 17... d5 {[%clk
0:01:37.3]} 18. g4 {[%clk 0:02:19.7]} 18... dxe4 {[%clk 0:01:26.9]} 19. g5
{[%clk 0:02:19.8]} 19... Nd7 {[%clk 0:01:21.8]} 20. Nxe4 {[%clk 0:02:19.8]}
20... Bxe4 {[%clk 0:01:14.1]} 21. fxe4 {[%clk 0:02:21.7]} 21... Rb6 {[%clk
0:01:10.4]} 22. Rh3 {[%clk 0:02:16.8]} 22... Ke7 {[%clk 0:01:04.7]} 23. Rhd3
{[%clk 0:02:15.1]} 23... Ne5 {[%clk 0:01:05.7]} 24. Rc3 {[%clk 0:02:15]} 24...
Rc8 {[%clk 0:01:00.9]} 25. Be2 {[%clk 0:02:15.7]} 25... a5 {[%clk 0:00:50.7]}
26. Rh1 {[%clk 0:02:14]} 26... Rh8 {[%clk 0:00:51]} 27. Rch3 {[%clk 0:02:12.9]}
27... Rhb8 {[%clk 0:00:47.1]} 28. b3 {[%clk 0:02:07.9]} 28... a4 {[%clk
0:00:42.9]} 29. bxa4 {[%clk 0:01:56.5]} 29... c4 {[%clk 0:00:34.9]} 30. Kd2
{[%clk 0:01:54.4]} 30... Rd8+ {[%clk 0:00:31]} 31. Kc3 {[%clk 0:01:55.2]} 31...
Ra8 {[%clk 0:00:30.3]} 32. Rxh7 {[%clk 0:01:39]} 32... Rxa4 {[%clk 0:00:30.8]}
33. Ra1 {[%clk 0:01:40.3]} 33... g6 {[%clk 0:00:25.5]} 34. Rh3 {[%clk
0:01:25.7]} 34... Rba6 {[%clk 0:00:22.2]} 35. Kd2 {[%clk 0:01:26.3]} 35... Rd6+
{[%clk 0:00:21.3]} 36. Ke3 {[%clk 0:01:24.4]} 36... Rda6 {[%clk 0:00:19.9]} 37.
Kf4 {[%clk 0:01:24.2]} 37... Nc6 {[%clk 0:00:19]} 38. Rc3 {[%clk 0:01:25]} 38...
e5+ {[%clk 0:00:17.5]} 39. Ke3 {[%clk 0:01:24.9]} 39... Nd4 {[%clk 0:00:17.9]}
40. Bxc4 {[%clk 0:01:23.6]} 40... Rc6 {[%clk 0:00:18.3]} 41. Kd3 {[%clk
0:01:24.7]} 41... Ra7 {[%clk 0:00:14.6]} 42. Bb3 {[%clk 0:01:23.5]} 42... Rd6
{[%clk 0:00:15.7]} 43. Ke3 {[%clk 0:01:24]} 43... Rb7 {[%clk 0:00:12.8]} 44. Rf1
{[%clk 0:01:22.2]} 44... Ne6 {[%clk 0:00:09.3]} 45. Rd3 {[%clk 0:01:20.8]} 45...
Rxd3+ {[%clk 0:00:07.9]} 46. Kxd3 {[%clk 0:01:20]} 46... Nf4+ {[%clk 0:00:09.2]}
47. Kc3 {[%clk 0:01:16.1]} 47... Rc7+ {[%clk 0:00:10.3]} 48. Kb2 {[%clk
0:01:16.6]} 48... Ke8 {[%clk 0:00:10.7]} 49. g3 {[%clk 0:01:17]} 49... Ne2
{[%clk 0:00:11]} 50. a4 {[%clk 0:01:15]} 50... Nxg3 {[%clk 0:00:11.8]} 51. Re1
{[%clk 0:01:16.3]} 51... Nh5 {[%clk 0:00:10.6]} 52. a5 {[%clk 0:01:16.8]} 52...
Ra7 {[%clk 0:00:09.5]} 53. Ra1 {[%clk 0:01:16.4]} 53... Nf4 {[%clk 0:00:09.3]}
54. Bc4 {[%clk 0:01:15.5]} 54... Kd7 {[%clk 0:00:10.3]} 55. a6 {[%clk
0:01:16.2]} 55... Kc6 {[%clk 0:00:11.7]} 56. Kc3 {[%clk 0:01:16.3]} 56... Kc5
{[%clk 0:00:09.1]} 57. Ra5+ {[%clk 0:01:16.2]} 57... Kd6 {[%clk 0:00:10.6]} 58.
Kb4 {[%clk 0:01:13.8]} 58... Nh3 {[%clk 0:00:09.7]} 59. Rd5+ {[%clk 0:01:13.6]}
59... Kc6 {[%clk 0:00:09.3]} 60. Bb5+ {[%clk 0:01:14.5]} 60... Kb6 {[%clk
0:00:09.4]} 61. Rd6+ {[%clk 0:01:14.6]} 61... Kc7 {[%clk 0:00:10.6]} 62. Kc5
{[%clk 0:01:07.8]} 62... Nxg5 {[%clk 0:00:07]} 63. Rd7+ {[%clk 0:01:08.9]} 63...
Kb8 {[%clk 0:00:08.5]} 64. Kb6 {[%clk 0:01:09.8]} 64... Rxd7 {[%clk 0:00:05.5]}
65. Bxd7 {[%clk 0:01:11.7]} 1-0

[Event "*** Titled Tuesday Blitz"]
[Site "Chess.com"]
[Date "2019.07.02"]
[Round "10"]
[White "TheBigBadChessDad"]
[Black "SoltaniciR"]
[Result "1-0"]
[WhiteElo "2313"]
[BlackElo "2563"]
[TimeControl "180+2"]
[EndTime "15:15:48 PDT"]
[Termination "TheBigBadChessDad won by resignation"]

1. d4 {[%clk 0:03:01.9]} 1... Nf6 {[%clk 0:03:00.3]} 2. Nf3 {[%clk 0:03:02.3]}
2... e6 {[%clk 0:03:00.8]} 3. Bf4 {[%clk 0:03:03.1]} 3... d5 {[%clk 0:02:56.7]}
4. e3 {[%clk 0:03:04.2]} 4... c5 {[%clk 0:02:55.9]} 5. c3 {[%clk 0:03:03.7]}
5... Bd6 {[%clk 0:02:57.3]} 6. Bg3 {[%clk 0:03:03.5]} 6... Qc7 {[%clk
0:02:56.7]} 7. Nbd2 {[%clk 0:03:04.3]} 7... Nbd7 {[%clk 0:02:56.8]} 8. Be2
{[%clk 0:02:40.4]} 8... O-O {[%clk 0:02:56]} 9. O-O {[%clk 0:02:35.8]} 9... b6
{[%clk 0:02:56.9]} 10. Rc1 {[%clk 0:02:25.9]} 10... Bb7 {[%clk 0:02:57.6]} 11.
c4 {[%clk 0:02:25.1]} 11... Bxg3 {[%clk 0:02:56.9]} 12. hxg3 {[%clk 0:02:25.4]}
12... dxc4 {[%clk 0:02:51.7]} 13. Bxc4 {[%clk 0:02:17.3]} 13... Qd6 {[%clk
0:02:16.4]} 14. Qe2 {[%clk 0:02:09.6]} 14... Rfd8 {[%clk 0:02:13.9]} 15. Rfd1
{[%clk 0:02:08.8]} 15... Qe7 {[%clk 0:02:15]} 16. Ba6 {[%clk 0:02:07.6]} 16...
Bxa6 {[%clk 0:02:08.4]} 17. Qxa6 {[%clk 0:02:08.6]} 17... cxd4 {[%clk
0:01:45.1]} 18. Nxd4 {[%clk 0:02:06.8]} 18... Nc5 {[%clk 0:01:46.2]} 19. Qa3
{[%clk 0:02:03.4]} 19... Qb7 {[%clk 0:01:45.5]} 20. b4 {[%clk 0:02:01]} 20...
Nce4 {[%clk 0:01:46.2]} 21. Nxe4 {[%clk 0:02:00.6]} 21... Nxe4 {[%clk
0:01:35.5]} 22. b5 {[%clk 0:01:57]} 22... a6 {[%clk 0:01:30]} 23. Qb2 {[%clk
0:01:40.7]} 23... axb5 {[%clk 0:01:26]} 24. Nxb5 {[%clk 0:01:41]} 24... Nc5
{[%clk 0:01:21]} 25. Rxd8+ {[%clk 0:01:01.6]} 25... Rxd8 {[%clk 0:01:20.8]} 26.
Rb1 {[%clk 0:01:02.9]} 26... h6 {[%clk 0:00:41]} 27. Nd4 {[%clk 0:01:00.6]}
27... Rd6 {[%clk 0:00:35.9]} 28. Qb4 {[%clk 0:00:52.9]} 28... Qe4 {[%clk
0:00:35.9]} 29. Qb2 {[%clk 0:00:36.7]} 29... e5 {[%clk 0:00:31.8]} 30. Nf3
{[%clk 0:00:34.7]} 30... Nd3 {[%clk 0:00:23]} 31. Qb3 {[%clk 0:00:21.6]} 31...
Rf6 {[%clk 0:00:10.8]} 32. Rd1 {[%clk 0:00:16.3]} 32... Rd6 {[%clk 0:00:11.6]}
33. Qc2 {[%clk 0:00:14.6]} 33... Qd5 {[%clk 0:00:07.8]} 34. e4 {[%clk 0:00:10]}
34... Qxe4 {[%clk 0:00:08.5]} 35. Ne1 {[%clk 0:00:09.9]} 35... Nc5 {[%clk
0:00:07.9]} 36. Qxe4 {[%clk 0:00:06.4]} 36... Nxe4 {[%clk 0:00:07.8]} 37. Rb1
{[%clk 0:00:06.2]} 37... Nc3 {[%clk 0:00:08]} 38. Rb2 {[%clk 0:00:03.3]} 38...
Nd1 {[%clk 0:00:08.7]} 39. Rb1 {[%clk 0:00:02.5]} 39... Nc3 {[%clk 0:00:09.8]}
40. Rb2 {[%clk 0:00:02.9]} 40... e4 {[%clk 0:00:11.1]} 41. Kf1 {[%clk
0:00:03.7]} 41... f5 {[%clk 0:00:12.2]} 42. f3 {[%clk 0:00:03.8]} 42... e3
{[%clk 0:00:12.2]} 43. Rc2 {[%clk 0:00:05.3]} 43... Rc6 {[%clk 0:00:10.6]} 44.
Nd3 {[%clk 0:00:04.5]} 44... Rc7 {[%clk 0:00:10.9]} 45. f4 {[%clk 0:00:05.7]}
45... Kf7 {[%clk 0:00:11.2]} 46. a3 {[%clk 0:00:06.4]} 46... Ke6 {[%clk
0:00:12.5]} 47. Ne5 {[%clk 0:00:06.2]} 47... Kd5 {[%clk 0:00:12.4]} 48. Ke1
{[%clk 0:00:07.4]} 48... Ke4 {[%clk 0:00:13.2]} 49. Nf3 {[%clk 0:00:06.3]} 49...
b5 {[%clk 0:00:11.6]} 50. Rb2 {[%clk 0:00:05.9]} 50... Rd7 {[%clk 0:00:10.6]}
51. Rb4+ {[%clk 0:00:04.9]} 51... Kd5 {[%clk 0:00:10.8]} 52. Rd4+ {[%clk
0:00:05.6]} 52... Kc6 {[%clk 0:00:11.9]} 53. Ne5+ {[%clk 0:00:06.1]} 53... Kc5
{[%clk 0:00:12.6]} 54. Rxd7 {[%clk 0:00:06.9]} 1-0

[Event "*** Titled Tuesday Blitz"]
[Site "Chess.com"]
[Date "2019.07.02"]
[Round "10"]
[White "BakaPG"]
[Black "Warerman"]
[Result "1-0"]
[WhiteElo "2707"]
[BlackElo "2457"]
[TimeControl "180+2"]
[EndTime "15:15:50 PDT"]
[Termination "BakaPG won by resignation"]

1. e4 {[%clk 0:03:01.9]} 1... c6 {[%clk 0:03:00.4]} 2. d4 {[%clk 0:03:02.4]}
2... d5 {[%clk 0:03:01.2]} 3. Nd2 {[%clk 0:03:03.6]} 3... dxe4 {[%clk
0:03:01.9]} 4. Nxe4 {[%clk 0:03:04.8]} 4... Bf5 {[%clk 0:03:03.3]} 5. Ng3 {[%clk
0:03:05.5]} 5... Bg6 {[%clk 0:03:04.3]} 6. Nf3 {[%clk 0:03:06.7]} 6... Nd7
{[%clk 0:03:04.9]} 7. h4 {[%clk 0:03:07.3]} 7... h6 {[%clk 0:03:05.9]} 8. h5
{[%clk 0:03:08.6]} 8... Bh7 {[%clk 0:03:06.9]} 9. Bd3 {[%clk 0:03:10.2]} 9...
Bxd3 {[%clk 0:03:08.2]} 10. Qxd3 {[%clk 0:03:11.4]} 10... e6 {[%clk 0:03:10.1]}
11. Bd2 {[%clk 0:03:12.3]} 11... Ngf6 {[%clk 0:03:10.5]} 12. O-O-O {[%clk
0:03:10.7]} 12... Be7 {[%clk 0:03:10.1]} 13. Kb1 {[%clk 0:03:04.9]} 13... O-O
{[%clk 0:03:10.1]} 14. Ne4 {[%clk 0:03:01.7]} 14... Nxe4 {[%clk 0:03:10.4]} 15.
Qxe4 {[%clk 0:03:02.3]} 15... Nf6 {[%clk 0:03:12.3]} 16. Qe2 {[%clk 0:03:02.5]}
16... Qd5 {[%clk 0:03:11.2]} 17. Ne5 {[%clk 0:02:57.5]} 17... Qe4 {[%clk
0:02:56.4]} 18. Be3 {[%clk 0:02:52.2]} 18... Nd5 {[%clk 0:02:57.2]} 19. Qd2
{[%clk 0:02:12.6]} 19... Nxe3 {[%clk 0:02:54.1]} 20. fxe3 {[%clk 0:02:13.6]}
20... Bg5 {[%clk 0:02:39.9]} 21. Rde1 {[%clk 0:01:54.9]} 21... Rad8 {[%clk
0:02:04.4]} 22. Nf3 {[%clk 0:01:51.1]} 22... Bf6 {[%clk 0:01:58.8]} 23. Qd3
{[%clk 0:01:51]} 23... Qxd3 {[%clk 0:01:53.1]} 24. cxd3 {[%clk 0:01:51.8]} 24...
c5 {[%clk 0:01:54.2]} 25. Rc1 {[%clk 0:01:44.6]} 25... cxd4 {[%clk 0:01:51.8]}
26. e4 {[%clk 0:01:45.3]} 26... Rd7 {[%clk 0:01:39.2]} 27. Rc4 {[%clk
0:01:43.1]} 27... Rfd8 {[%clk 0:01:28.8]} 28. Rhc1 {[%clk 0:01:41.5]} 28... Bg5
{[%clk 0:01:29.7]} 29. R1c2 {[%clk 0:01:41.5]} 29... Be3 {[%clk 0:01:30.2]} 30.
a4 {[%clk 0:01:38.2]} 30... f6 {[%clk 0:01:28.8]} 31. Nh4 {[%clk 0:01:27.4]}
31... Bf4 {[%clk 0:01:12.8]} 32. Ng6 {[%clk 0:01:26.3]} 32... Bg3 {[%clk
0:01:09.5]} 33. Ka2 {[%clk 0:01:20.3]} 33... Kf7 {[%clk 0:01:02.9]} 34. Rb4
{[%clk 0:01:11.2]} 34... f5 {[%clk 0:01:02.1]} 35. exf5 {[%clk 0:01:11.3]} 35...
exf5 {[%clk 0:01:04]} 36. Rc5 {[%clk 0:01:09.5]} 36... Ke6 {[%clk 0:00:42.1]}
37. Rbb5 {[%clk 0:01:05.7]} 37... Rf7 {[%clk 0:00:41.7]} 38. a5 {[%clk
0:00:59.4]} 38... a6 {[%clk 0:00:30.6]} 39. Rb6+ {[%clk 0:00:56.1]} 39... Rd6
{[%clk 0:00:29.9]} 40. Rb4 {[%clk 0:00:53.2]} 40... Rd5 {[%clk 0:00:27.9]} 41.
Rb6+ {[%clk 0:00:45.2]} 41... Rd6 {[%clk 0:00:22.5]} 42. b4 {[%clk 0:00:45.9]}
42... Rxb6 {[%clk 0:00:20.6]} 43. axb6 {[%clk 0:00:47]} 43... Bd6 {[%clk
0:00:22.5]} 44. Rc4 {[%clk 0:00:46.1]} 44... Kd5 {[%clk 0:00:23.5]} 45. Kb3
{[%clk 0:00:46.7]} 45... f4 {[%clk 0:00:23.1]} 46. Nh4 {[%clk 0:00:47.5]} 46...
Be5 {[%clk 0:00:20.8]} 47. Rc5+ {[%clk 0:00:45]} 47... Ke6 {[%clk 0:00:20.9]}
48. Nf3 {[%clk 0:00:43.2]} 48... Rf5 {[%clk 0:00:21]} 49. Kc4 {[%clk 0:00:37.6]}
49... Bf6 {[%clk 0:00:19.5]} 50. Rc7 {[%clk 0:00:36.4]} 50... Rxh5 {[%clk
0:00:19.9]} 51. Rxb7 {[%clk 0:00:36.5]} 51... Rb5 {[%clk 0:00:20.7]} 52. Nd2
{[%clk 0:00:34.7]} 52... g5 {[%clk 0:00:20.4]} 53. Ne4 {[%clk 0:00:35.3]} 53...
Be5 {[%clk 0:00:20.5]} 54. Nc5+ {[%clk 0:00:35.7]} 54... Kf5 {[%clk 0:00:20.9]}
55. Re7 {[%clk 0:00:31]} 55... Bd6 {[%clk 0:00:19.7]} 56. Rb7 {[%clk 0:00:28.1]}
56... g4 {[%clk 0:00:19.5]} 57. Nxa6 {[%clk 0:00:29.2]} 57... f3 {[%clk
0:00:17.8]} 58. gxf3 {[%clk 0:00:29.3]} 58... g3 {[%clk 0:00:18.8]} 59. Kxb5
{[%clk 0:00:28.8]} 59... Bf4 {[%clk 0:00:13.5]} 60. Rf7+ {[%clk 0:00:27.3]}
60... Ke6 {[%clk 0:00:12.4]} 61. Rxf4 {[%clk 0:00:27.9]} 61... g2 {[%clk
0:00:12.8]} 62. Rg4 {[%clk 0:00:28.9]} 1-0